fUSD/lending_fUSD_20251225
["ID","MTS","AMOUNT","RATE_DAILY","PERIOD"]
[399748881,1766657443236,-150.0,0.00016137,2]
[399748882,1766657443247,-150.0,0.00016137,2]
[399748883,1766657443258,-150.0,0.00016137,2]
[399748884,1766657443270,-150.0,0.00016137,2]
[399748885,1766657443281,-150.0,0.00016137,2]
[399748886,1766657443292,-150.0,0.00016137,2]
[399748887,1766657443303,-150.0,0.00016137,2]
[399748888,1766657443313,-194.50106884,0.00016146,2]
[399748889,1766657443324,-156.92142475,0.00016146,2]
[399748890,1766657443335,-263.8246358,0.00016146,2]
[399748891,1766657443345,-150.0,0.00016156,2]
[399748892,1766657443356,-150.0,0.00016157,2]
[399748893,1766657443367,-150.0,0.00016158,2]
[399748894,1766657443378,-150.0,0.00016161,2]
[399748895,1766657443389,-194.50106884,0.00016163,2]
[399748896,1766657443399,-156.92142475,0.00016163,2]
[399748897,1766657443410,-263.8246358,0.00016163,2]
[399748898,1766657443421,-150.0,0.00016163,2]
[399748899,1766657443433,-150.0,0.00016174,2]
[399748900,1766657443443,-150.0,0.00016175,2]
[399748901,1766657443454,-150.0,0.00016177,2]
[399748902,1766657443465,-194.50106884,0.0001618,2]
[399748903,1766657443476,-156.92142475,0.0001618,2]
[399748904,1766657443487,-263.8246358,0.0001618,2]
[399748905,1766657443497,-150.0,0.00016186,2]
[399748906,1766657443508,-150.0,0.00016187,2]
[399748907,1766657443519,-150.0,0.00016194,2]
[399748908,1766657443529,-194.50106884,0.00016197,2]
[399748909,1766657443539,-156.92142475,0.00016197,2]
[399748910,1766657443550,-263.8246358,0.00016197,2]
[399748911,1766657443560,-150.0,0.00016198,2]
[399748912,1766657443571,-150.0,0.00016199,2]
[399748913,1766657443582,-3773.56925867,0.00016205,2]
[399748914,1766657443593,-150.0,0.0001621,2]
[399748915,1766657443604,-150.0,0.00016212,2]
[399748916,1766657443614,-194.50106884,0.00016214,2]
[399748917,1766657443625,-156.92142475,0.00016214,2]
[399748918,1766657443635,-150.0,0.00016214,2]
[399748919,1766657443646,-263.8246358,0.00016214,2]
[399748920,1766657443656,-150.0,0.00016214,2]
[399748921,1766657443667,-150.0,0.00016218,2]
[399748922,1766657443678,-194.50106884,0.00016231,2]
[399748923,1766657443688,-156.92142475,0.00016231,2]
[399748924,1766657443700,-263.8246358,0.00016231,2]
[399748925,1766657443714,-150.0,0.00016231,2]
[399748926,1766657443724,-150.0,0.00016234,2]
[399748927,1766657443734,-150.0,0.00016238,2]
[399748928,1766657443745,-150.0,0.00016241,2]
[399748929,1766657443756,-150.0,0.00016248,2]
[399748930,1766657443767,-194.50106884,0.00016249,2]
[399748931,1766657443778,-156.92142475,0.00016249,2]
[399748932,1766657443789,-263.8246358,0.00016249,2]
[399748933,1766657443799,-150.0,0.0001625,2]
[399748934,1766657443810,-150.0,0.00016258,2]
[399748935,1766657443820,-150.0,0.00016258,2]
[399748936,1766657443831,-150.0,0.00016266,2]
[399748937,1766657443841,-194.50106884,0.00016266,2]
[399748938,1766657443851,-156.92142475,0.00016266,2]
[399748939,1766657443862,-263.8246358,0.00016266,2]
[399748940,1766657443873,-150.0,0.00016269,2]
[399748941,1766657443883,-150.0,0.00016279,2]
[399748942,1766657443894,-150.0,0.00016282,2]
[399748943,1766657443904,-150.0,0.00016283,2]
[399748944,1766657443915,-194.50106884,0.00016283,2]
[399748945,1766657443925,-156.92142475,0.00016283,2]
[399748946,1766657443936,-263.8246358,0.00016283,2]
[399748947,1766657443946,-150.0,0.00016287,2]
[399748948,1766657444456,-150.0,0.00016288,2]
[399748949,1766657444479,-150.0,0.00016291,2]
[399748950,1766657444497,-150.0,0.00016299,2]
[399748951,1766657444507,-194.50106884,0.000163,2]
[399748952,1766657444517,-156.92142475,0.000163,2]
[399748953,1766657444527,-263.8246358,0.000163,2]
[399748954,1766657444537,-150.0,0.00016307,2]
[399748955,1766657444547,-150.0,0.00016307,2]
[399748956,1766657444557,-194.50106884,0.00016317,2]
[399748957,1766657444567,-156.92142475,0.00016317,2]
[399748958,1766657444577,-263.8246358,0.00016317,2]
[399748959,1766657444587,-150.0,0.00016317,2]
[399748960,1766657444598,-150.0,0.00016319,2]
[399748961,1766657444607,-150.0,0.00016322,2]
[399748962,1766657444617,-150.0,0.00016323,2]
[399748963,1766657444627,-150.0,0.00016326,2]
[399748964,1766657444636,-150.0,0.00016331,2]
[399748965,1766657444646,-194.50106884,0.00016334,2]
[399748966,1766657444656,-156.92142475,0.00016334,2]
[399748967,1766657444666,-263.8246358,0.00016334,2]
[399748968,1766657444675,-150.0,0.00016339,2]
[399748969,1766657444685,-150.0,0.00016345,2]
[399748970,1766657444695,-150.0,0.00016349,2]
[399748971,1766657444706,-194.50106884,0.00016351,2]
[399748972,1766657444717,-156.92142475,0.00016351,2]
[399748973,1766657444727,-263.8246358,0.00016351,2]
[399748974,1766657444736,-150.0,0.00016355,2]
[399748975,1766657444748,-1610.0,0.00016357,2]
[399748976,1766657444758,-3459.0,0.00016357,2]
[399748977,1766657444768,-432.0,0.00016357,2]
[399748978,1766657444779,-1263.0,0.00016357,2]
[399748979,1766657444788,-912.0,0.00016357,2]
[399748980,1766657444798,-1198.0,0.00016357,2]
[399748981,1766657444807,-4807.0,0.00016357,2]
[399748982,1766657444816,-593.512,0.00016357,2]
[399748983,1766657444826,-2430.0,0.00016357,2]
[399748984,1766657444836,-151.0,0.00016357,2]
[399748985,1766657444846,-159.76616,0.00016357,2]
[399748986,1766657444855,-159.76616,0.00016357,2]
[399748987,1766657444864,-159.76616,0.00016357,2]
[399748988,1766657444874,-159.76616,0.00016357,2]
[399748989,1766657444883,-151.0,0.00016357,2]
[399748990,1766657444893,-151.0,0.00016357,2]
[399748991,1766657444902,-151.0,0.00016357,2]
[399748992,1766657444912,-151.0,0.00016357,2]
[399748993,1766657444921,-151.0,0.00016357,2]
[399748994,1766657444931,-766.470861,0.00016357,2]
[399748995,1766657444941,-766.470861,0.00016357,2]
[399748996,1766657444951,-766.470861,0.00016357,2]
[399748997,1766657444966,-766.470861,0.00016357,2]
[399748998,1766657444978,-151.0,0.00016357,2]
[399748999,1766657444988,-150.0,0.00016359,2]
[399749000,1766657444998,-150.0,0.00016363,2]
[399749001,1766657445008,-150.0,0.00016365,2]
[399749002,1766657445018,-194.50106884,0.00016369,2]
[399749003,1766657445028,-156.92142475,0.00016369,2]
[399749004,1766657445039,-150.0,0.00016369,2]
[399749005,1766657445050,-263.8246358,0.00016369,2]
[399749006,1766657445060,-150.0,0.00016369,2]
[399749007,1766657445070,-150.0,0.0001638,2]
[399749008,1766657445081,-150.0,0.0001638,2]
[399749009,1766657445091,-150.0,0.00016382,2]
[399749010,1766657445101,-194.50106884,0.00016386,2]
[399749011,1766657445111,-156.92142475,0.00016386,2]
[399749012,1766657445121,-263.8246358,0.00016386,2]
[399749013,1766657445131,-150.0,0.00016387,2]
[399749014,1766657445142,-150.0,0.00016395,2]
[399749015,1766657445153,-150.0,0.000164,2]
[399749016,1766657445162,-150.0,0.00016401,2]
[399749017,1766657445172,-194.50106884,0.00016403,2]
[399749018,1766657445182,-156.92142475,0.00016403,2]
[399749019,1766657445192,-263.8246358,0.00016403,2]
[399749020,1766657445202,-150.0,0.00016404,2]
[399749021,1766657445211,-150.0,0.00016406,2]
[399749022,1766657445221,-194.50106884,0.0001642,2]
[399749023,1766657445231,-156.92142475,0.0001642,2]
[399749024,1766657445240,-150.0,0.0001642,2]
[399749025,1766657445250,-150.0,0.0001642,2]
[399749026,1766657445260,-263.8246358,0.0001642,2]
[399749027,1766657445272,-150.0,0.0001642,2]
[399749028,1766657445282,-150.0,0.0001642,2]
[399749029,1766657445292,-150.0,0.00016428,2]
[399749030,1766657445302,-194.50106884,0.00016437,2]
[399749031,1766657445313,-156.92142475,0.00016437,2]
[399749032,1766657445323,-263.8246358,0.00016437,2]
[399749033,1766657445333,-500.0,0.00016438,2]
[399749034,1766657445343,-500.0,0.00016438,2]
[399749035,1766657445353,-500.0,0.00016438,2]
[399749036,1766657445363,-151.0,0.00016438,2]
[399749037,1766657445373,-500.0,0.00016438,2]
[399749038,1766657445383,-500.0,0.00016438,2]
[399749039,1766657445394,-500.0,0.00016438,2]
[399749040,1766657445403,-357.78168066,0.00016438,2]
[399749041,1766657445413,-500.0,0.00016438,2]
[399749042,1766657445423,-500.0,0.00016438,2]
[399749043,1766657445433,-500.0,0.00016438,2]
[399749044,1766657445443,-11296.92,0.00016438,2]
[399749045,1766657445453,-151.0,0.00016438,2]
[399749046,1766657445463,-264.770607,0.00016438,2]
[399749047,1766657445474,-385.26348,0.00016438,2]
[399749048,1766657445484,-385.26348,0.00016438,2]
[399749049,1766657445494,-385.26348,0.00016438,2]
[399749050,1766657445503,-385.26348,0.00016438,2]
[399749051,1766657445513,-716.0,0.00016438,2]
[399749052,1766657445523,-151.0,0.00016438,2]
[399749053,1766657445532,-151.0,0.00016438,2]
[399749054,1766657445542,-151.0,0.00016438,2]
[399749055,1766657445552,-201.01484,0.00016438,2]
[399749056,1766657445562,-150.0,0.00016439,2]
[399749057,1766657445572,-150.0,0.0001644,2]
[399749058,1766657445582,-150.0,0.00016446,2]
[399749059,1766657445592,-150.0,0.00016448,2]
[399749060,1766657445602,-150.0,0.00016452,2]
[399749061,1766657445612,-194.50106884,0.00016454,2]
[399749062,1766657445622,-156.92142475,0.00016454,2]
[399749063,1766657445632,-263.8246358,0.00016454,2]
[399749064,1766657445642,-150.0,0.00016458,2]
[399749065,1766657445653,-150.0,0.00016461,2]
[399749066,1766657445662,-150.0,0.00016469,2]
[399749067,1766657445671,-194.50106884,0.00016472,2]
[399749068,1766657445681,-156.92142475,0.00016472,2]
[399749069,1766657445692,-263.8246358,0.00016472,2]
[399749070,1766657445703,-150.0,0.00016472,2]
[399749071,1766657445713,-150.0,0.00016477,2]
[399749072,1766657445723,-150.0,0.00016477,2]
[399749073,1766657445733,-150.0,0.00016481,2]
[399749074,1766657445743,-150.0,0.00016487,2]
[399749075,1766657445753,-194.50106884,0.00016489,2]
[399749076,1766657445763,-156.92142475,0.00016489,2]
[399749077,1766657445773,-263.8246358,0.00016489,2]
[399749078,1766657445783,-150.0,0.00016489,2]
[399749079,1766657445794,-150.0,0.00016496,2]
[399749080,1766657445804,-150.0,0.00016501,2]
[399749081,1766657445815,-150.0,0.00016501,2]
[399749082,1766657445825,-194.50106884,0.00016506,2]
[399749083,1766657445835,-156.92142475,0.00016506,2]
[399749084,1766657445846,-263.8246358,0.00016506,2]
[399749085,1766657445856,-150.0,0.00016514,2]
[399749086,1766657445867,-150.0,0.00016521,2]
[399749087,1766657445877,-194.50106884,0.00016523,2]
[399749088,1766657445887,-156.92142475,0.00016523,2]
[399749089,1766657445897,-150.0,0.00016523,2]
[399749090,1766657445908,-263.8246358,0.00016523,2]
[399749091,1766657445918,-150.0,0.00016523,2]
[399749092,1766657445931,-150.0,0.00016525,2]
[399749093,1766657445947,-150.0,0.00016531,2]
[399749094,1766657445958,-178.0,0.00016532,2]
[399749095,1766657445973,-150.0,0.00016533,2]
[399749096,1766657445987,-178.0,0.00016538,2]
[399749097,1766657445997,-194.50106884,0.0001654,2]
[399749098,1766657446007,-156.92142475,0.0001654,2]
[399749099,1766657446018,-263.8246358,0.0001654,2]
[399749100,1766657446028,-150.0,0.00016541,2]
[399749102,1766657446038,-181.0,0.00016542,2]
[399749104,1766657446048,-150.0,0.00016543,2]
[399749105,1766657446059,-150.0,0.0001655,2]
[399749107,1766657446069,-150.0,0.00016552,2]
[399749108,1766657446079,-181.0,0.00016555,2]
[399749109,1766657446088,-194.50106884,0.00016557,2]
[399749110,1766657446098,-156.92142475,0.00016557,2]
[399749111,1766657446108,-263.8246358,0.00016557,2]
[399749112,1766657446118,-150.0,0.00016562,2]
[399749113,1766657446128,-150.0,0.00016562,2]
[399749114,1766657446138,-150.0,0.00016562,2]
[399749115,1766657446148,-150.0,0.00016571,2]
[399749116,1766657446158,-150.0,0.00016572,2]
[399749117,1766657446168,-150.0,0.00016574,2]
[399749118,1766657446177,-194.50106884,0.00016575,2]
[399749119,1766657446188,-156.92142475,0.00016575,2]
[399749120,1766657446198,-263.8246358,0.00016575,2]
[399749121,1766657446209,-150.0,0.00016575,2]
[399749122,1766657446220,-1077.0,0.00016577,2]
[399749123,1766657446230,-1077.0,0.0001658,2]
[399749124,1766657446240,-150.0,0.00016582,2]
[399749125,1766657446250,-150.0,0.00016587,2]
[399749126,1766657446260,-150.0,0.0001659,2]
[399749127,1766657446271,-194.50106884,0.00016592,2]
[399749128,1766657446283,-156.92142475,0.00016592,2]
[399749129,1766657446293,-263.8246358,0.00016592,2]
[399749130,1766657446302,-150.0,0.00016598,2]
[399749131,1766657446313,-150.0,0.000166,2]
[399749132,1766657446323,-150.0,0.00016602,2]
[399749133,1766657446333,-194.50106884,0.00016609,2]
[399749134,1766657446343,-156.92142475,0.00016609,2]
[399749135,1766657446354,-263.8246358,0.00016609,2]
[399749136,1766657446364,-150.0,0.00016609,2]
[399749137,1766657446374,-181.0,0.00016611,2]
[399749138,1766657446384,-150.0,0.00016613,2]
[399749139,1766657446395,-150.0,0.00016617,2]
[399749140,1766657446406,-178.0,0.0001662,2]
[399749141,1766657446416,-150.0,0.00016622,2]
[399749142,1766657446426,-150.0,0.00016622,2]
[399749143,1766657446436,-1000.0,0.00016624,2]
[399749144,1766657446446,-1000.0,0.00016624,2]
[399749145,1766657446456,-1000.0,0.00016624,2]
[399749147,1766657446467,-1000.0,0.00016624,2]
[399749149,1766657446478,-796.056,0.00016624,2]
[399749151,1766657446488,-194.50106884,0.00016626,2]
[399749153,1766657446498,-156.92142475,0.00016626,2]
[399749155,1766657446508,-263.8246358,0.00016626,2]
[399749157,1766657446517,-150.0,0.00016626,2]
[399749159,1766657446528,-150.0,0.00016628,2]
[399749160,1766657446538,-150.0,0.00016643,2]
[399749162,1766657446547,-194.50106884,0.00016643,2]
[399749164,1766657446557,-156.92142475,0.00016643,2]
[399749166,1766657446567,-263.8246358,0.00016643,2]
[399749168,1766657446577,-150.0,0.00016647,2]
[399749170,1766657446586,-150.0,0.00016647,2]
[399749172,1766657446595,-150.0,0.00016655,2]
[399749174,1766657446605,-194.50106884,0.0001666,2]
[399749176,1766657446615,-156.92142475,0.0001666,2]
[399749178,1766657446624,-263.8246358,0.0001666,2]
[399749180,1766657446634,-150.0,0.00016663,2]
[399749182,1766657446643,-150.0,0.00016665,2]
[399749184,1766657446653,-150.0,0.00016671,2]
[399749185,1766657446663,-194.50106884,0.00016677,2]
[399749187,1766657446674,-156.92142475,0.00016677,2]
[399749189,1766657446683,-150.0,0.00016677,2]
[399749191,1766657446694,-263.8246358,0.00016677,2]
[399749193,1766657446706,-150.0,0.00016677,2]
[399749195,1766657446716,-150.0,0.00016683,2]
[399749197,1766657446728,-150.0,0.00016684,2]
[399749199,1766657446739,-150.0,0.00016687,2]
[399749201,1766657446749,-150.0,0.00016691,2]
[399749202,1766657446759,-194.50106884,0.00016695,2]
[399749204,1766657446770,-156.92142475,0.00016695,2]
[399749206,1766657446779,-263.8246358,0.00016695,2]
[399749208,1766657446789,-150.0,0.00016695,2]
[399749210,1766657446798,-150.0,0.00016696,2]
[399749213,1766657446814,-500.0,0.00016699,2]
[399749215,1766657446824,-162.55809121,0.00016699,2]
[399749217,1766657446835,-150.0,0.00016699,2]
[399749219,1766657446844,-150.0,0.00016699,2]
[399749220,1766657446854,-500.0,0.00016699,2]
[399749222,1766657446864,-150.0,0.00016699,2]
[399749224,1766657446875,-150.0,0.00016699,2]
[399749232,1766657446945,-150.0,0.00016699,2]
[399749234,1766657446955,-150.0,0.00016699,2]
[399749236,1766657446965,-150.0,0.00016699,2]
[399749238,1766657446975,-150.0,0.00016699,2]
[399749240,1766657446985,-150.0,0.00016703,2]
[399749242,1766657446995,-150.0,0.00016703,2]
[399749244,1766657447005,-150.0,0.00016703,2]
[399749246,1766657447015,-194.50106884,0.00016712,2]
[399749248,1766657447025,-156.92142475,0.00016712,2]
[399749250,1766657447034,-263.8246358,0.00016712,2]
[399749251,1766657447044,-1077.0,0.00016712,2]
[399749252,1766657447053,-166.63,0.00016712,2]
[399749253,1766657447063,-150.0,0.00016719,2]
[399749254,1766657447072,-150.0,0.00016722,2]
[399749256,1766657447082,-150.0,0.00016723,2]
[399749258,1766657447091,-500.0,0.00016726,2]
[399749260,1766657447101,-150.0,0.00016726,2]
[399749262,1766657447111,-500.0,0.00016726,2]
[399749264,1766657447120,-150.0,0.00016726,2]
[399749265,1766657447129,-150.0,0.00016726,2]
[399749267,1766657447139,-187.27787589,0.00016726,2]
[399749270,1766657447153,-244.24474848,0.00016726,2]
[399749272,1766657447164,-178.0,0.00016727,2]
[399749274,1766657447174,-194.50106884,0.00016729,2]
[399749276,1766657447183,-156.92142475,0.00016729,2]
[399749278,1766657447193,-263.8246358,0.00016729,2]
[399749279,1766657447203,-150.0,0.00016729,2]
[399749280,1766657447213,-150.0,0.00016738,2]
[399749281,1766657447230,-150.0,0.00016741,2]
[399749282,1766657447240,-150.0,0.00016744,2]
[399749283,1766657447250,-150.0,0.00016744,2]
[399749284,1766657447260,-194.50106884,0.00016746,2]
[399749285,1766657447269,-156.92142475,0.00016746,2]
[399749286,1766657447279,-263.8246358,0.00016746,2]
[399749287,1766657447290,-178.0,0.00016753,2]
[399749288,1766657447300,-500.0,0.00016754,2]
[399749289,1766657447310,-200.0,0.00016754,2]
[399749290,1766657447320,-500.0,0.00016754,2]
[399749291,1766657447330,-200.0,0.00016754,2]
[399749292,1766657447339,-200.0,0.00016754,2]
[399749293,1766657447349,-151.0,0.00016754,2]
[399749294,1766657447359,-258.615269,0.00016754,2]
[399749295,1766657447368,-258.615269,0.00016754,2]
[399749296,1766657447378,-258.615269,0.00016754,2]
[399749297,1766657447388,-258.615269,0.00016754,2]
[399749298,1766657447397,-151.0,0.00016754,2]
[399749299,1766657447407,-151.0,0.00016754,2]
[399749300,1766657447416,-151.0,0.00016754,2]
[399749301,1766657447426,-2000.0,0.00016754,2]
[399749302,1766657447436,-150.0,0.00016755,2]
[399749303,1766657447445,-150.0,0.0001676,2]
[399749304,1766657447455,-194.50106884,0.00016763,2]
[399749305,1766657447465,-156.92142475,0.00016763,2]
[399749306,1766657447474,-263.8246358,0.00016763,2]
[399749307,1766657447485,-150.0,0.00016764,2]
[399749308,1766657447494,-150.0,0.00016765,2]
[399749309,1766657447504,-150.0,0.00016768,2]
[399749310,1766657447514,-150.0,0.00016774,2]
[399749311,1766657447528,-1623.096,0.00016774,2]
[399749312,1766657447537,-164.233,0.00016774,2]
[399749313,1766657447547,-150.0,0.00016779,2]
[399749314,1766657447556,-150.0,0.00016779,2]
[399749315,1766657447566,-194.50106884,0.0001678,2]
[399749316,1766657447575,-156.92142475,0.0001678,2]
[399749317,1766657447585,-263.8246358,0.0001678,2]
[399749318,1766657447595,-150.0,0.0001678,2]
[399749319,1766657447605,-500.0,0.00016781,2]
[399749320,1766657447614,-500.0,0.00016781,2]
[399749321,1766657447624,-178.0,0.00016783,2]
[399749322,1766657447634,-150.0,0.00016784,2]
[399749323,1766657447643,-150.0,0.00016786,2]
[399749324,1766657447652,-150.0,0.00016792,2]
[399749325,1766657447661,-194.50106884,0.00016798,2]
[399749326,1766657447671,-156.92142475,0.00016798,2]
[399749327,1766657447681,-263.8246358,0.00016798,2]
[399749328,1766657447691,-150.0,0.00016798,2]
[399749329,1766657447702,-150.0,0.00016804,2]
[399749330,1766657447714,-151.0,0.00016808,2]
[399749331,1766657447724,-633.0,0.00016809,2]
[399749332,1766657447733,-500.0,0.00016809,2]
[399749333,1766657447743,-194.50106884,0.00016815,2]
[399749334,1766657447753,-156.92142475,0.00016815,2]
[399749335,1766657447763,-263.8246358,0.00016815,2]
[399749336,1766657447774,-150.0,0.00016816,2]
[399749337,1766657447783,-150.0,0.00016816,2]
[399749338,1766657447793,-150.0,0.00016821,2]
[399749339,1766657447803,-150.0,0.00016825,2]
[399749340,1766657447813,-194.50106884,0.00016832,2]
[399749341,1766657447823,-156.92142475,0.00016832,2]
[399749342,1766657447833,-150.0,0.00016832,2]
[399749343,1766657447844,-263.8246358,0.00016832,2]
[399749344,1766657447854,-150.0,0.00016832,2]
[399749345,1766657447863,-150.0,0.00016835,2]
[399749346,1766657447873,-500.0,0.00016836,2]
[399749347,1766657447884,-150.0,0.00016839,2]
[399749348,1766657447896,-150.0,0.00016841,2]
[399749349,1766657447910,-150.0,0.00016845,2]
[399749350,1766657447920,-178.0,0.00016846,2]
[399749351,1766657447930,-194.50106884,0.00016849,2]
[399749352,1766657447940,-156.92142475,0.00016849,2]
[399749353,1766657447950,-263.8246358,0.00016849,2]
[399749354,1766657447959,-150.0,0.00016854,2]
[399749355,1766657447970,-178.0,0.0001686,2]
[399749356,1766657447980,-150.0,0.00016862,2]
[399749357,1766657447990,-500.0,0.00016863,2]
[399749358,1766657447999,-200.0,0.00016864,2]
[399749359,1766657448009,-150.0,0.00016865,2]
[399749360,1766657448019,-150.0,0.00016865,2]
[399749361,1766657448029,-194.50106884,0.00016866,2]
[399749362,1766657448038,-156.92142475,0.00016866,2]
[399749363,1766657448048,-263.8246358,0.00016866,2]
[399749364,1766657448058,-150.0,0.00016873,2]
[399749365,1766657448068,-194.50106884,0.00016883,2]
[399749366,1766657448078,-156.92142475,0.00016883,2]
[399749367,1766657448088,-263.8246358,0.00016883,2]
[399749368,1766657448098,-150.0,0.00016883,2]
[399749369,1766657448108,-150.0,0.00016885,2]
[399749370,1766657448118,-150.0,0.00016886,2]
[399749371,1766657448127,-150.0,0.00016889,2]
[399749372,1766657448137,-500.0,0.00016891,2]
[399749373,1766657448146,-151.0,0.00016891,2]
[399749374,1766657448156,-150.0,0.00016892,2]
[399749375,1766657448165,-10000.0,0.000169,2]
[399749376,1766657448175,-2141.13101448,0.000169,2]
[399749377,1766657448185,-151.0,0.000169,2]
[399749378,1766657448195,-151.0,0.000169,2]
[399749379,1766657448205,-151.0,0.000169,2]
[399749380,1766657448216,-151.0,0.000169,2]
[399749381,1766657448226,-3773.56925867,0.000169,2]
[399749382,1766657448236,-557.79452917,0.000169,2]
[399749383,1766657448246,-525.84966531,0.000169,2]
[399749384,1766657448256,-170.28248417,0.000169,2]
[399749385,1766657448269,-342.2070404,0.000169,2]
[399749386,1766657448278,-194.50106884,0.00016901,2]
[399749387,1766657448289,-156.92142475,0.00016901,2]
[399749388,1766657448299,-263.8246358,0.00016901,2]
[399749389,1766657448310,-150.0,0.00016903,2]
[399749390,1766657448320,-150.0,0.00016905,2]
[399749391,1766657448331,-150.0,0.00016909,2]
[399749392,1766657448341,-150.0,0.00016911,2]
[399749393,1766657448352,-150.0,0.00016912,2]
[399749394,1766657448361,-150.0,0.00016914,2]
[399749395,1766657448371,-178.0,0.00016918,2]
[399749396,1766657448382,-194.50106884,0.00016918,2]
[399749397,1766657448392,-156.92142475,0.00016918,2]
[399749398,1766657448402,-263.8246358,0.00016918,2]
[399749399,1766657448412,-500.0,0.00016918,2]
[399749400,1766657448423,-150.0,0.00016926,2]
[399749401,1766657448433,-150.0,0.0001693,2]
[399749402,1766657448442,-194.50106884,0.00016935,2]
[399749403,1766657448453,-156.92142475,0.00016935,2]
[399749404,1766657448462,-263.8246358,0.00016935,2]
[399749405,1766657448472,-150.0,0.00016935,2]
[399749406,1766657448483,-150.0,0.00016938,2]
[399749407,1766657448493,-178.0,0.00016945,2]
[399749408,1766657448503,-150.0,0.00016945,2]
[399749409,1766657448513,-218.80351721,0.00016946,2]
[399749410,1766657448524,-150.0,0.00016946,2]
[399749411,1766657448534,-150.0,0.00016949,2]
[399749412,1766657448544,-194.50106884,0.00016952,2]
[399749413,1766657448554,-156.92142475,0.00016952,2]
[399749414,1766657448564,-263.8246358,0.00016952,2]
[399749415,1766657448574,-178.0,0.00016954,2]
[399749416,1766657448584,-229.0,0.00016959,2]
[399749417,1766657448593,-150.0,0.00016962,2]
[399749418,1766657448604,-150.0,0.00016966,2]
[399749419,1766657448614,-150.0,0.00016967,2]
[399749420,1766657448624,-194.50106884,0.00016969,2]
[399749421,1766657448634,-156.92142475,0.00016969,2]
[399749422,1766657448644,-263.8246358,0.00016969,2]
[399749423,1766657448668,-500.0,0.00016973,2]
[399749424,1766657448678,-168.84175508,0.00016973,2]
[399749425,1766657448688,-500.26609484,0.00016973,2]
[399749426,1766657448701,-160.24066084,0.00016973,2]
[399749427,1766657448711,-385.4280122,0.00016973,2]
[399749428,1766657448720,-500.0,0.00016973,2]
[399749429,1766657448730,-500.0,0.00016973,2]
[399749430,1766657448741,-500.0,0.00016973,2]
[399749431,1766657448751,-500.0,0.00016973,2]
[399749432,1766657448760,-322.88246699,0.00016973,2]
[399749433,1766657448770,-500.0,0.00016973,2]
[399749434,1766657448781,-500.0,0.00016973,2]
[399749435,1766657448792,-500.0,0.00016973,2]
[399749436,1766657448801,-502.65078725,0.00016973,2]
[399749437,1766657448812,-500.0,0.00016973,2]
[399749438,1766657448822,-152.708763,0.00016973,2]
[399749439,1766657448836,-151.0,0.00016973,2]
[399749440,1766657448846,-173.381213,0.00016973,2]
[399749441,1766657448856,-150.0,0.00016973,2]
[399749442,1766657448867,-150.0,0.00016973,2]
[399749443,1766657448877,-576.8,0.00016986,2]
[399749444,1766657448887,-917.0,0.00016986,2]
[399749445,1766657448898,-184.63789102,0.00016986,2]
[399749446,1766657448909,-194.50106884,0.00016986,2]
[399749447,1766657448919,-156.92142475,0.00016986,2]
[399749448,1766657448929,-169.35594183,0.00016986,2]
[399749449,1766657448940,-195.90301911,0.00016986,2]